bitfinex/quotes_ETHUSD_20220202
["timestamp","ask_amount","ask_price","bid_price","bid_amount"]
[1643803483050,1.2312,2779.7,2778.6,1.97889]
[1643803483255,1.2312,2779.7,2778.6,3.91206972]
[1643803483449,1.1917682,2779.6,2778.6,3.91206972]
[1643803483650,1.1917682,2779.6,2778.6,1.97889]
[1643803483849,1.1917682,2779.6,2778.6,0.1799]
[1643803484050,1.1917682,2779.6,2778.6,2.07735508]
[1643803484249,1.1917682,2779.6,2778.6,2.08170586]
[1643803485052,1.1917682,2779.6,2778.6,0.1799]
[1643803486050,1.1917682,2779.6,2778.7,1.78360511]
[1643803486249,1.1917682,2779.6,2778.8,2.31117807]
[1643803486250,0.85709038,2779.6,2778.8,2.31117807]
[1643803486779,2.17344789,2779.8,2778.8,2.31117807]
[1643803487180,2.17344789,2779.8,2778.8,2.49100807]
[1643803487984,2.17344789,2779.8,2778.9,0.89933]
[1643803488293,2.17344789,2779.8,2779.0,2.99582019]
[1643803488890,2.17344789,2779.8,2779.2,0.83001042]
[1643803489083,2.17344789,2779.8,2779.0,2.99582019]
[1643803489295,2.17344789,2779.8,2779.0,2.98785951]
[1643803490087,2.17344789,2779.8,2779.2,0.34819269]
[1643803490286,2.17344789,2779.8,2779.2,1.89610632]
[1643803490526,2.17344789,2779.8,2779.0,3.04517471]
[1643803490720,2.17344789,2779.8,2779.2,1.91557469]
[1643803491121,2.12344789,2779.8,2779.2,1.91557469]
[1643803492122,2.12344789,2779.8,2779.0,3.07963195]
[1643803492334,0.85776049,2779.6,2779.0,3.07963195]
[1643803492529,0.85776049,2779.6,2779.0,2.98044353]
[1643803492726,0.85776049,2779.6,2779.0,0.8981707]
[1643803493129,0.85776049,2779.6,2779.0,2.83404856]
[1643803493350,0.85776049,2779.6,2779.0,0.8981707]
[1643803493529,0.85776049,2779.6,2779.0,2.81906396]
[1643803493730,0.85776049,2779.6,2779.0,0.8981707]
[1643803495571,0.85776049,2779.6,2779.0,2.81529473]
[1643803495772,0.85776049,2779.6,2779.0,0.8981707]
[1643803496880,1.26502921,2779.5,2778.7,0.1799]
[1643803497076,1.26502921,2779.5,2778.9,0.89943]
[1643803497290,0.85776049,2779.6,2778.9,0.89943]
[1643803497880,1.26709359,2779.5,2778.9,1.5719835]
[1643803498126,1.26709359,2779.5,2779.0,0.89935]
[1643803498544,1.26709359,2779.5,2779.0,2.69799]
[1643803498935,2.12344789,2779.8,2779.0,2.69799]
[1643803498936,1.26709359,2779.4,2779.0,2.69799]
[1643803499140,1.26709359,2779.3,2779.1,2.04444883]
[1643803499426,2.12344789,2779.8,2779.1,2.04444883]
[1643803499628,1.27021922,2779.7,2779.1,2.04444883]
[1643803499829,1.27021922,2779.7,2779.1,2.94375883]
[1643803500048,1.27021922,2779.7,2779.2,0.24268628]
[1643803500228,1.27021922,2779.7,2779.3,2.12463708]
[1643803500432,1.27021922,2779.7,2779.4,0.24268628]
[1643803500634,1.27021922,2779.7,2779.5,2.00311526]
[1643803500828,1.27021922,2779.7,2779.3,2.05926074]
[1643803501036,1.27021922,2779.7,2779.4,0.67874]
[1643803501230,1.27021922,2779.7,2779.3,2.05926074]
[1643803501431,1.22021922,2779.7,2779.4,0.24259229]
[1643803501628,2.12344789,2779.8,2779.4,0.24259229]
[1643803501876,2.12344789,2779.8,2779.5,0.8993]
[1643803502076,2.12344789,2779.8,2779.3,1.99669131]
[1643803502479,2.12344789,2779.8,2779.4,0.83149152]
[1643803502695,2.12344789,2779.8,2779.3,1.99669131]
[1643803503491,2.12344789,2779.8,2779.5,0.8993]
[1643803504682,0.77103574,2779.6,2779.5,0.8993]
[1643803505190,2.12344789,2779.8,2779.5,0.8993]
[1643803505382,2.12344789,2779.8,2779.1,2.38292413]
[1643803505649,2.12344789,2779.8,2779.1,0.35953]
[1643803506428,2.12344789,2779.8,2779.2,1.94144838]
[1643803507028,2.12344789,2779.8,2779.2,2.84084838]
[1643803507428,2.12344789,2779.8,2779.2,3.28974222]
[1643803507629,2.12344789,2779.8,2779.3,0.89931]
[1643803507834,2.12344789,2779.8,2779.3,1.79859]
[1643803509887,2.12344789,2779.8,2779.4,1.91832519]
[1643803510105,2.12344789,2779.8,2779.4,4.61604519]
[1643803510285,2.12344789,2779.8,2779.5,0.89923]
[1643803512090,2.12344789,2779.8,2779.6,1.90619101]
[1643803512488,2.12344789,2779.8,2779.5,0.89923]
[1643803513740,2.12344789,2779.8,2779.6,1.91015921]
[1643803514331,2.12344789,2779.8,2779.6,2.31547215]
[1643803514530,2.12344789,2779.8,2779.7,2.10958623]
[1643803516339,2.12344789,2779.8,2779.7,1.87963309]
[1643803516648,2.12344789,2779.8,2779.6,0.8992]
[1643803516877,2.12344789,2779.8,2779.6,2.80645349]
[1643803517979,2.12344789,2779.8,2779.6,0.8992]
[1643803518579,2.12344789,2779.8,2779.5,2.82469702]
[1643803518986,2.12344789,2779.8,2779.5,3.72394702]
[1643803519780,2.12344789,2779.8,2779.5,3.68958776]
[1643803520179,2.12344789,2779.8,2779.5,1.79848]
[1643803521220,2.12344789,2779.8,2779.5,0.89923]
[1643803521423,1.26239107,2779.7,2779.6,0.2536207]
[1643803521623,1.26239107,2779.7,2779.5,0.89923]
[1643803522622,1.26239107,2779.7,2779.6,1.94309097]
[1643803522837,1.26252289,2779.7,2779.6,0.25360023]
[1643803523027,1.26254295,2779.7,2779.5,0.89923]
[1643803523733,2.12344789,2779.8,2779.6,0.25360751]
[1643803524038,2.12344789,2779.8,2779.7,1.9]
[1643803524275,2.12344789,2779.8,2779.7,2.15360751]
[1643803524276,3.38639942,2779.8,2779.7,2.15360751]
[1643803524481,3.38639942,2779.8,2779.7,0.25360751]
[1643803524890,3.38639942,2779.8,2779.5,0.89923]
[1643803525080,1.26295153,2779.7,2779.6,0.25310327]
[1643803525291,2.12344789,2779.8,2779.6,0.25310327]
[1643803525577,1.26157763,2779.7,2779.6,0.25310327]
[1643803525780,2.12344789,2779.8,2779.6,0.25310327]
[1643803525977,2.12344789,2779.8,2779.5,0.89923]
[1643803526785,2.44261053,2779.8,2779.5,0.89923]
[1643803527377,0.78540784,2779.7,2779.5,0.89923]
[1643803528048,2.12344789,2779.8,2779.5,0.89923]
[1643803528650,2.12344789,2779.8,2779.5,0.89763439]
[1643803529749,2.12344789,2779.8,2779.6,1.87307973]
[1643803529953,2.12344789,2779.8,2779.5,0.89763439]
[1643803530866,2.12344789,2779.8,2779.7,0.87734909]
[1643803531451,2.12344789,2779.8,2779.5,1.79690439]
[1643803532484,2.12344789,2779.8,2779.5,0.89763439]
[1643803534680,0.00082667,2779.7,2779.5,0.89763439]
[1643803545639,1.28063585,2779.7,2779.6,0.24004036]
[1643803546258,1.28063585,2779.7,2779.5,0.89763439]
[1643803546436,1.28063585,2779.7,2779.6,0.23645262]
[1643803546635,1.28063585,2779.7,2779.6,0.23642874]
[1643803547089,1.28063585,2779.7,2779.5,0.89763439]
[1643803547281,1.28063585,2779.7,2779.6,0.23640212]
[1643803547475,1.28063585,2779.7,2779.5,0.89763439]
[1643803547881,1.28063585,2779.7,2779.6,0.2361091]
[1643803548082,1.28063585,2779.7,2779.5,0.89763439]
[1643803548287,1.28063585,2779.7,2779.6,0.23610546]
[1643803548483,1.28063585,2779.7,2779.6,0.23611608]
[1643803548685,1.28063585,2779.7,2779.1,1.79895]
[1643803548997,1.96208944,2779.7,2779.2,0.22028986]
[1643803549489,0.68145359,2779.3,2778.6,0.1797]
[1643803549686,0.32560984,2779.1,2778.7,0.20208072]
[1643803549889,1.27980918,2779.0,2778.7,0.20208072]
[1643803550084,0.81147205,2778.8,2778.4,2.0]
[1643803550291,0.81147205,2778.8,2778.5,0.2001865]
[1643803550292,1.27980918,2778.7,2778.5,0.2001865]
[1643803550531,1.27980918,2778.7,2778.5,1.0999065]
[1643803550730,1.27980918,2778.7,2778.6,0.2001865]
[1643803551330,1.2785225,2778.7,2778.0,0.1799]
[1643803551530,1.2785225,2778.7,2777.9,0.85301263]
[1643803551733,1.2785225,2778.7,2777.9,0.1799]
[1643803551934,1.2785225,2778.7,2777.9,0.8999]
[1643803552936,1.2785225,2778.7,2778.1,0.89978]
[1643803553938,4.2405,2779.2,2778.3,0.89972]
[1643803554138,1.2132,2779.2,2778.4,2.03343886]
[1643803554381,1.2132,2779.2,2778.2,3.04529709]
[1643803554980,0.88295112,2779.1,2778.3,0.72385403]
[1643803555193,1.2132,2779.2,2778.3,1.62351403]
[1643803555384,1.2132,2779.2,2778.6,0.89968]
[1643803555682,0.68145359,2779.5,2778.6,0.89968]
[1643803556282,10.90745667,2779.7,2778.6,0.89968]
[1643803556283,0.85941461,2779.4,2778.6,0.89968]
[1643803556887,0.68145359,2779.5,2778.6,0.89968]
[1643803557085,0.68145359,2779.6,2778.8,0.8996]
[1643803557284,3.75942667,2779.7,2778.9,2.20717299]
[1643803557895,0.00082667,2779.7,2778.8,2.10977111]
[1643803558160,0.67698155,2779.4,2778.8,0.1799]
[1643803558348,0.67698155,2779.4,2779.0,0.89949]
[1643803558553,0.44529216,2779.7,2779.0,0.89949]
[1643803558748,0.00082667,2779.7,2779.0,0.89949]
[1643803559351,0.68228026,2779.7,2779.0,0.89949]
[1643803559752,0.90494157,2779.5,2779.0,0.89949]
[1643803562179,1.1097217,2779.7,2779.0,0.89949]
[1643803562180,0.00082667,2779.7,2779.0,0.89949]
[1643803563384,0.74763042,2779.6,2779.1,0.89944]
[1643803563582,0.74763042,2779.6,2779.1,0.1797]
[1643803564790,0.74763042,2779.6,2779.0,2.87794]
[1643803564985,0.74763042,2779.6,2779.0,0.89949]
[1643803566031,0.74763042,2779.6,2778.9,1.79889]
[1643803566253,1.98839952,2779.5,2778.9,1.79889]
[1643803566434,2.0055205,2779.5,2778.9,1.79889]
[1643803567034,0.74763042,2779.6,2778.9,1.79889]
[1643803567342,1.9892871,2779.5,2778.9,1.79889]
[1643803567735,0.84763042,2779.6,2778.9,1.79889]
[1643803570208,0.39180964,2779.5,2778.9,1.79889]
[1643803570396,2.34294907,2779.5,2778.8,1.79902]
[1643803571403,1.35191931,2779.4,2778.8,1.79902]
[1643803571694,1.35191931,2779.4,2778.9,0.16439828]
[1643803571895,3.30174359,2779.5,2778.9,0.16439828]
[1643803572107,1.35191931,2779.4,2778.9,0.16439828]
[1643803572295,1.35191931,2779.3,2779.0,0.89952]
[1643803572497,0.84763042,2779.6,2779.3,0.29743955]
[1643803572799,1.35202103,2779.5,2779.3,0.29743955]
[1643803574634,1.35093136,2779.5,2779.4,0.15709529]
[1643803576058,1.35093136,2779.5,2779.3,0.29743955]
[1643803576539,3.30276888,2779.5,2779.3,0.29743955]
[1643803576794,0.84763042,2779.6,2779.3,0.29743955]
[1643803576795,2.65,2779.4,2779.3,0.29743955]
[1643803576997,0.84763042,2779.6,2779.3,0.29743955]
[1643803576998,0.1,2779.6,2779.3,0.29743955]
[1643803584881,0.1,2779.6,2779.3,1.19686955]
[1643803585079,0.1,2779.6,2779.3,2.00853377]
[1643803586083,0.1,2779.6,2779.4,0.89941]
[1643803586685,0.1,2779.6,2779.5,0.89933]
[1643803587087,0.1,2779.6,2779.4,2.79201098]
[1643803587088,0.1,2779.6,2779.4,0.89941]
[1643803587685,0.1,2779.6,2779.3,2.00853377]
[1643803591241,0.1,2779.6,2779.4,0.89936]
[1643803591905,0.05,2779.6,2779.4,0.89936]
[1643803592484,0.04353757,2779.6,2779.4,0.89936]
[1643803593493,0.04353757,2779.6,2779.3,2.00853377]
[1643803594094,0.04353757,2779.6,2779.4,1.79868]
[1643803594692,0.04353757,2779.6,2779.5,0.08938042]
[1643803595084,1.47202121,2779.6,2779.5,0.08938042]
[1643803595285,1.47283945,2779.6,2779.5,0.08938042]
[1643803596531,1.37283945,2779.6,2779.5,0.08938042]
[1643803596728,0.00081824,2779.6,2779.5,0.08938042]
[1643803599126,2.07343104,2779.8,2779.5,1.88803042]
[1643803599396,2.07343104,2779.8,2779.5,2.69803]
[1643803610947,2.07343104,2779.8,2779.6,1.79862]
[1643803611148,2.07343104,2779.8,2779.6,1.97832]
[1643803612148,2.07343104,2779.8,2779.7,2.37522156]
[1643803612366,1.1106382,2780.2,2779.7,2.37522156]
[1643803612367,1.1106382,2780.2,2779.8,6.5]
[1643803612552,0.98957439,2780.2,2779.9,3.19538108]
[1643803612749,0.98957439,2780.2,2780.0,0.1797]
[1643803613352,0.98957439,2780.2,2780.1,0.74277874]
[1643803613560,0.88957439,2780.2,2780.1,1.82143874]
[1643803614405,0.88957439,2780.2,2780.1,3.89517611]
[1643803614793,0.88957439,2780.2,2780.1,3.71547611]
[1643803616294,0.88957439,2780.2,2780.1,2.97269737]
[1643803616496,0.88957439,2780.2,2780.1,0.89896]
[1643803616696,0.88957439,2780.2,2780.1,0.07630344]
[1643803618336,0.88957439,2780.2,2780.1,2.83765228]
[1643803618737,0.88957439,2780.2,2780.1,0.97533344]
[1643803619334,0.88957439,2780.2,2780.1,2.8534095]
[1643803622078,0.88957439,2780.2,2780.1,0.97533344]
[1643803622683,0.88957439,2780.2,2780.1,2.85084364]
[1643803625641,0.88957439,2780.2,2780.1,2.84994904]
[1643803628537,0.88957439,2780.2,2780.1,0.97443884]
[1643803630609,0.88957439,2780.2,2780.1,0.07540884]
[1643803632489,0.79061696,2780.2,2780.1,1.95045471]
[1643803633139,0.79061696,2780.2,2780.1,0.07540884]
[1643803634144,0.79061696,2780.2,2779.6,0.1797]
[1643803634145,1.79061695,2780.2,2779.6,0.1797]
[1643803634362,0.99999999,2780.0,2779.3,0.47713955]
[1643803634557,2.53979395,2780.1,2779.4,3.5]
[1643803634737,2.0,2780.0,2779.3,0.29743955]
[1643803634936,0.78264452,2779.4,2779.3,0.29743955]
[1643803635537,0.78264452,2779.4,2779.1,0.89944]
[1643803635755,0.78264452,2779.4,2779.0,0.8516419]
[1643803635937,0.78264452,2779.4,2779.0,0.1799]
[1643803636144,0.78264452,2779.4,2778.8,0.6499319]
[1643803636346,0.78264452,2779.4,2778.8,1.37143808]
[1643803636781,0.78264452,2779.4,2778.8,2.27090808]
[1643803637883,0.78264452,2779.4,2778.9,0.89951]
[1643803639285,0.78264452,2779.4,2778.9,1.07941]
[1643803639589,0.1797,2779.7,2779.0,0.89937]
[1643803639785,0.1797,2780.1,2779.1,3.77702]
[1643803639985,0.1797,2780.1,2779.1,3.59732]
[1643803640408,0.33726738,2779.8,2779.1,3.59732]
[1643803640631,0.72070687,2779.6,2779.1,3.59732]
[1643803640830,0.72070687,2779.6,2779.2,0.89933]
[1643803641038,0.72070687,2779.6,2779.1,3.59732]
[1643803642144,2.12750752,2780.1,2779.1,4.52181535]
[1643803642145,0.1797,2779.8,2779.1,4.52181535]
[1643803642333,2.81771696,2780.2,2779.4,0.89943]
[1643803642334,0.1797,2780.0,2779.4,0.89943]
[1643803642531,0.1797,2780.1,2779.4,1.79881]
[1643803642832,0.1797,2780.1,2779.4,0.89938]
[1643803643236,0.1797,2780.1,2779.6,1.71845116]
[1643803643444,0.79061696,2780.2,2779.7,0.89932]
[1643803643645,0.79061696,2780.2,2779.7,1.07902]
[1643803644289,0.79061696,2780.2,2780.0,0.32751038]
[1643803644486,0.79061696,2780.2,2780.1,0.90695416]
[1643803644683,0.79061696,2780.2,2780.1,3.13870424]
[1643803645105,0.79061696,2780.2,2780.1,0.90574416]
[1643803645491,0.79061696,2780.2,2780.1,0.89994416]
[1643803645683,0.79061696,2780.2,2780.1,2.69795416]
[1643803645891,0.79061696,2780.2,2780.1,2.87765416]
[1643803646489,1.4242717,2781.4,2780.1,2.87765416]
[1643803646490,0.68259418,2781.5,2780.2,6.5]
[1643803646692,1.52563614,2781.4,2781.2,0.0125137]
[1643803646894,0.68259418,2782.2,2781.2,0.0125137]
[1643803647095,0.68259418,2782.2,2781.3,0.523]
[1643803647501,0.78973013,2781.8,2781.3,1.36673787]
[1643803647688,1.5255754,2781.7,2781.3,1.36673787]
[1643803648036,1.5255754,2781.6,2781.3,1.36673787]
[1643803648242,0.68259418,2782.3,2781.3,1.36673787]
[1643803648449,7.6111,2782.7,2781.3,1.36673787]
[1643803648450,2.20813611,2782.2,2781.3,1.36673787]
[1643803648654,0.81312069,2781.9,2781.3,2.26533787]
[1643803648851,1.52554193,2781.8,2781.4,2.08424242]
[1643803649041,1.52554193,2781.7,2781.5,0.523]
[1643803649243,1.5255172,2781.6,2781.5,0.7027]
[1643803649443,0.68259418,2782.3,2781.5,0.523]
[1643803649645,2.64033431,2782.2,2781.5,0.523]
[1643803649948,1.5255172,2782.1,2781.5,0.52207]
[1643803650145,1.5255172,2782.0,2781.5,0.52207]
[1643803650446,0.46022138,2781.9,2781.5,0.52207]
[1643803650643,3.98059337,2782.8,2781.6,0.89861]
[1643803650865,0.99999999,2782.7,2781.7,0.89854]
[1643803651045,0.17983,2782.6,2781.7,0.89854]
[1643803651354,1.83851318,2783.0,2781.7,0.89854]
[1643803651355,1.72016456,2783.4,2782.0,0.01240835]
[1643803651550,1.66800675,2783.5,2782.0,0.01240835]
[1643803651551,1.1106382,2783.5,2782.5,0.01241777]
[1643803651783,0.04035807,2782.9,2782.6,0.523]
[1643803652000,0.04035807,2782.9,2782.6,1.42119]
[1643803652191,1.1106382,2783.5,2782.8,0.3]
[1643803652385,2.24814147,2784.6,2783.4,0.01297467]
[1643803652582,2.24814147,2784.6,2783.5,0.523]
[1643803652793,0.99999999,2784.4,2782.9,11.78736528]
[1643803653007,0.99999999,2784.4,2783.3,1.79593]
[1643803653200,0.99999999,2784.5,2783.4,0.523]
[1643803653386,3.103,2785.3,2783.7,0.89794]
[1643803653595,2.23969999,2785.4,2783.8,0.523]
[1643803653789,1.2397,2785.4,2783.8,0.523]
[1643803654194,0.9348937,2784.5,2783.9,0.81870635]
[1643803654388,2.17279999,2785.6,2784.0,0.523]
[1643803654589,2.17279999,2785.6,2784.1,0.1794]
[1643803654590,0.99999999,2785.0,2784.1,0.1794]
[1643803654789,1.1728,2785.6,2784.1,0.5524]
[1643803654993,0.05,2784.9,2784.1,0.7025]
[1643803655202,0.94999999,2785.4,2784.1,0.523]
[1643803655389,1.06475127,2785.8,2784.2,2.0]
[1643803655634,0.90239447,2785.6,2784.9,0.01266112]
[1643803655836,0.11475128,2785.8,2785.0,0.523]
[1643803656032,0.11475128,2785.8,2784.5,0.523]
[1643803656033,0.90239447,2785.7,2784.5,0.523]
[1643803656537,0.11475128,2785.8,2784.5,0.523]
[1643803656538,0.11475128,2785.8,2784.9,0.05]
[1643803656732,0.94191638,2785.6,2785.0,0.72591162]
[1643803657140,0.94191638,2785.6,2784.9,0.573]
[1643803657531,0.94191638,2785.6,2784.9,0.523]
[1643803657731,0.94191638,2785.6,2784.9,0.573]
[1643803658534,0.11475128,2785.8,2785.4,0.05]
[1643803658933,0.11475128,2785.8,2785.3,0.523]
[1643803659382,0.77991714,2785.7,2785.3,0.523]
[1643803660084,0.77991714,2785.7,2785.1,0.1794]
[1643803660285,0.77991714,2785.7,2784.9,0.523]
[1643803660483,0.82998714,2785.7,2785.0,0.1794]
[1643803660685,0.82998714,2785.7,2784.7,0.7024]
[1643803660885,0.82998714,2785.7,2785.0,0.05]
[1643803661483,0.92216887,2785.2,2785.0,0.05]
[1643803661689,0.05007,2785.7,2784.8,2.19181027]
[1643803661885,0.05007,2785.7,2785.1,0.53572373]
[1643803662084,0.11475128,2785.8,2785.0,0.523]
[1643803662595,0.11475128,2785.8,2785.0,0.573]
[1643803662782,0.11475128,2785.8,2785.0,1.28715617]
[1643803662783,0.69448106,2785.5,2785.0,1.28715617]
[1643803663030,0.69448106,2785.5,2785.0,0.523]
[1643803663435,0.69448106,2785.5,2784.8,2.13429006]
[1643803663654,0.69448106,2785.5,2784.8,0.1794]
[1643803664035,0.69448106,2785.5,2784.9,0.84721457]
[1643803664264,0.69448106,2785.5,2784.9,0.89721457]
[1643803664434,0.69448106,2785.5,2784.8,0.1794]
[1643803665538,0.69448106,2785.5,2784.8,1.05462262]
[1643803665739,7e-05,2785.4,2784.8,0.87522262]
[1643803665939,1.64448105,2785.5,2784.3,0.25]
[1643803666141,1.94448105,2785.5,2783.9,0.89778]
[1643803666338,2.94448105,2785.5,2783.9,0.89778]
[1643803666541,0.94999999,2785.2,2783.9,0.89778]
[1643803666790,0.42463413,2784.7,2784.0,0.05]
[1643803667087,0.68526134,2784.5,2784.0,0.05]
[1643803667287,1.3,2785.5,2784.0,0.05]
[1643803667489,0.3,2785.5,2784.0,0.05]
[1643803667687,0.3,2785.5,2783.9,1.59663322]
[1643803667688,0.94999999,2785.0,2783.8,0.05]
[1643803667888,0.523,2785.1,2783.7,0.05]
[1643803668490,0.523,2785.1,2783.5,2.89789]
[1643803668801,0.92463719,2784.3,2783.8,0.05]
[1643803669193,0.523,2785.1,2784.0,0.05]
[1643803669497,2.89058127,2785.6,2784.6,0.05]
[1643803669498,1.2404,2785.6,2784.6,0.05]
[1643803669699,0.63775128,2785.8,2784.2,0.2294]
[1643803669891,1.63775128,2785.8,2784.2,0.2294]
[1643803670091,3.42138506,2785.8,2784.2,0.05]
[1643803670290,0.75081508,2784.6,2784.1,0.1794]
[1643803670545,0.75081508,2784.6,2784.0,0.88549201]
[1643803670546,0.94999999,2785.4,2784.0,1.06489201]
[1643803670749,0.3,2785.4,2784.0,1.06489201]
[1643803671142,0.3,2785.4,2784.3,0.05]
[1643803671357,0.3349236,2784.9,2784.1,0.05]
[1643803671752,0.78397276,2784.7,2784.1,0.05]
[1643803672153,0.94999999,2784.5,2784.0,0.1794]
[1643803672345,2.03397275,2784.7,2783.4,0.1794]
[1643803672551,0.3,2784.5,2783.4,0.1794]
[1643803672866,3.03397275,2784.7,2783.4,0.1794]
[1643803673047,0.1794,2784.6,2783.3,1.89171505]
[1643803673250,0.82276847,2783.9,2783.3,0.85349082]
[1643803673750,0.1794,2784.6,2783.3,0.85349082]
[1643803674589,0.3,2784.6,2783.4,0.1796]
[1643803674791,0.6702313,2784.1,2783.4,0.1796]
[1643803675285,0.1794,2784.7,2783.6,0.05]
[1643803675484,0.3349236,2784.9,2783.6,0.05]
[1643803675485,0.1794,2784.8,2783.7,0.1794]
[1643803676289,0.91477436,2784.0,2783.7,0.1794]
[1643803676486,0.1794,2784.8,2783.8,0.05]
[1643803676701,0.1794,2784.9,2783.8,0.05]
[1643803677489,0.88745595,2784.2,2783.8,0.05]
[1643803677887,0.88745595,2784.2,2783.5,0.2296]
[1643803678642,0.88745595,2784.2,2783.5,0.1796]
[1643803679049,0.88745595,2784.2,2783.8,0.05]
[1643803680344,0.88745595,2784.2,2783.5,0.2296]
[1643803681150,0.88745595,2784.2,2783.5,0.1796]
[1643803681544,0.88745595,2784.2,2783.4,0.1796]
[1643803681783,0.88745595,2784.2,2783.5,0.05]
[1643803682294,0.1794,2784.5,2783.9,0.01288476]
[1643803682595,0.1794,2784.9,2784.3,0.05]
[1643803682798,0.1794,2785.3,2784.3,0.05]
[1643803682991,0.1794,2785.3,2784.1,0.05]
[1643803683189,0.1794,2785.3,2783.9,0.01288476]
[1643803683389,0.81826402,2784.8,2784.6,0.05]
[1643803683591,0.81826402,2784.8,2784.0,0.1794]
[1643803683791,0.99766402,2784.8,2784.0,0.1794]
[1643803683991,0.99766402,2784.8,2783.8,0.1794]
[1643803684792,0.67058216,2784.3,2783.8,0.1794]
[1643803684991,0.67058216,2784.3,2783.7,0.90613906]
[1643803685202,0.1794,2784.8,2783.7,0.90613906]
[1643803685650,0.1794,2784.8,2783.7,0.95613906]
[1643803686050,0.1794,2784.8,2783.7,0.90613906]
[1643803686255,0.74543651,2784.3,2783.7,0.90613906]
[1643803686651,0.1794,2784.8,2783.9,0.05]
[1643803687857,1.40185324,2784.7,2783.9,0.05]
[1643803688050,0.1794,2784.6,2783.9,0.05]
[1643803688258,0.1794,2784.8,2783.9,0.05]
[1643803688461,0.71390193,2784.4,2783.9,0.05]
[1643803690695,1.4098455,2784.3,2783.9,0.05]
[1643803693241,1.4098455,2784.3,2783.2,5.16705827]
[1643803693242,0.87896174,2783.9,2783.2,5.16705827]
[1643803693445,0.87896174,2783.9,2783.0,0.25]
[1643803693446,1.4098455,2783.8,2783.0,0.25]
[1643803693640,1.4098455,2783.8,2782.8,5.5177]
[1643803693641,1.4098455,2783.8,2782.7,3.8008]
[1643803693838,1.4098455,2783.8,2782.8,2.0]
[1643803694246,1.4098455,2783.8,2782.7,0.5]
[1643803694247,0.71626054,2783.1,2782.7,0.5]
[1643803694838,1.41246718,2783.0,2782.7,0.5]
[1643803695037,1.41246718,2783.0,2782.4,0.53349376]
[1643803695238,1.41246718,2783.0,2782.3,0.01207963]
[1643803695643,0.74459092,2782.5,2782.3,0.01207963]
[1643803695838,0.1796,2783.5,2782.4,0.27752918]
[1643803696041,1.41565319,2783.4,2782.5,0.09782918]
[1643803696247,0.1796,2783.3,2782.5,0.09782918]
[1643803696438,1.41565319,2783.2,2782.5,0.09782918]
[1643803696899,1.41565319,2783.1,2782.5,2.99400879]
[1643803697100,1.34423602,2784.1,2782.6,0.98025918]
[1643803697101,0.1796,2783.7,2782.6,0.98025918]
[1643803697299,4.53149447,2784.3,2782.6,0.98025918]
[1643803697300,1.41634571,2783.6,2783.0,0.01214389]
[1643803697497,0.6721219,2784.2,2783.1,0.27742918]
[1643803697498,1.41634571,2783.5,2783.1,0.27742918]
[1643803697696,0.1796,2784.1,2783.2,2.07306137]
[1643803697897,0.70480046,2783.9,2783.3,1.24866042]
[1643803698116,1.4163087,2783.8,2783.4,2.29753518]
[1643803698317,1.34423602,2784.9,2783.4,2.29753518]
[1643803698318,0.6721219,2784.5,2783.7,0.01285198]
[1643803698502,0.6721219,2784.8,2783.8,7.88643]
[1643803698710,0.6721219,2785.0,2783.9,0.0226759]
[1643803698900,0.6721219,2785.0,2784.0,0.88223]
[1643803699101,0.88440798,2784.7,2784.0,0.88223]
[1643803700543,0.70024881,2784.2,2784.0,0.88223]
[1643803701148,0.70024881,2784.2,2784.0,0.1794]
[1643803701346,0.8515219,2784.9,2784.0,0.1794]
[1643803701574,0.6721219,2784.8,2783.9,0.2020759]
[1643803701760,0.6721219,2784.5,2783.8,7.363]
[1643803701946,0.1794,2784.4,2783.8,7.1836]
[1643803702652,0.41055388,2784.2,2783.8,7.1836]
[1643803702851,0.58995388,2784.2,2783.8,7.1836]
[1643803703048,0.8515219,2784.2,2783.8,7.1836]
[1643803703248,0.1794,2784.2,2783.8,7.1836]
[1643803704061,0.99999999,2784.0,2783.2,0.1794]
[1643803704306,2.8517219,2783.9,2783.2,0.1794]
[1643803704496,0.8517219,2783.9,2783.2,0.1794]
[1643803704893,0.92861356,2783.5,2783.0,0.25]
[1643803705094,0.1796,2783.4,2782.4,1.06276232]
[1643803705494,2.1796,2783.8,2782.4,1.06276232]
[1643803705701,0.1796,2783.8,2782.4,1.06276232]
[1643803706101,0.33958522,2783.2,2782.4,1.06276232]
[1643803706300,0.1796,2783.8,2782.4,1.06276232]
[1643803706301,0.86312825,2783.5,2782.4,1.06276232]
[1643803706501,0.1796,2783.4,2782.4,1.72142754]
[1643803707295,5.87982197,2783.9,2782.4,1.72142754]
[1643803707296,0.37286218,2783.7,2782.4,1.72142754]
[1643803707496,0.1796,2783.6,2782.4,1.72142754]
[1643803708167,1.03031486,2783.6,2782.5,0.65866522]
[1643803708368,1.03031486,2783.6,2782.4,1.72142754]
[1643803708771,0.1796,2783.6,2782.4,1.72142754]
[1643803708970,0.1796,2783.6,2782.5,0.67066958]
[1643803709169,0.1796,2784.0,2782.5,0.67066958]
[1643803709372,0.8517219,2784.0,2782.6,1.98520786]
[1643803709577,0.1796,2784.0,2782.7,0.17983]
[1643803709970,0.87169929,2783.9,2782.7,0.17983]
[1643803710278,0.35775329,2783.7,2782.7,0.17983]
[1643803711083,0.1796,2783.8,2782.9,0.75115861]
[1643803711274,0.1796,2783.8,2783.0,0.1796]
[1643803712092,0.53385754,2783.8,2782.7,0.17983]
[1643803712298,0.53385754,2783.8,2782.8,0.1796]
[1643803712508,0.53385754,2783.8,2782.6,0.1796]
[1643803713698,0.1796,2783.8,2782.7,0.17983]
[1643803713905,1.34423602,2784.5,2783.2,0.01253709]
[1643803713906,0.1796,2783.9,2783.2,0.01253709]
[1643803714104,0.1796,2784.1,2783.2,0.01253709]
[1643803714397,0.90239447,2784.5,2783.2,0.01253709]
[1643803714597,1.08199447,2784.4,2783.2,0.01253709]
[1643803714797,0.43138719,2783.8,2783.2,0.01253709]
[1643803715198,0.43138719,2783.8,2783.0,0.1796]
[1643803715399,0.1796,2783.7,2782.8,0.1796]
[1643803716043,0.93314927,2783.5,2782.7,0.1796]
[1643803716260,0.1796,2783.7,2782.8,0.17983]
[1643803716447,0.1796,2784.1,2782.8,2.36214349]
[1643803716641,0.1796,2784.3,2782.9,0.19178871]
[1643803717040,1.08199447,2784.4,2782.9,0.19178871]
[1643803717240,0.34613334,2784.0,2783.2,0.94360425]
[1643803717441,0.1796,2783.9,2783.2,0.94360425]